fUSD/lending_fUSD_20260309
["ID","MTS","AMOUNT","RATE_DAILY","PERIOD"]
[408020517,1773035446240,-179.888072,0.00019877,2]
[408020518,1773035446251,-408.369624,0.00019877,2]
[408020519,1773035446260,-408.369624,0.00019877,2]
[408020521,1773035446270,-408.369624,0.00019877,2]
[408020522,1773035446278,-408.369624,0.00019877,2]
[408020523,1773035446288,-151.0,0.00019879,2]
[408020524,1773035446297,-25000.0,0.00019882,3]
[408020525,1773035446306,-343.42229143,0.00019883,2]
[408020526,1773035446315,-500.0,0.00019887,2]
[408020527,1773035446324,-151.0,0.00019888,2]
[408020529,1773035446333,-151.0,0.00019888,2]
[408020530,1773035446342,-417.205546,0.00019888,2]
[408020531,1773035446352,-417.205546,0.00019888,2]
[408020532,1773035446361,-417.205546,0.00019888,2]
[408020533,1773035446371,-417.205546,0.00019888,2]
[408020534,1773035446380,-159.050609,0.00019888,2]
[408020535,1773035446389,-159.050609,0.00019888,2]
[408020536,1773035446398,-159.050609,0.00019888,2]
[408020537,1773035446408,-159.050609,0.00019888,2]
[408020538,1773035446417,-151.0,0.00019888,2]
[408020539,1773035446426,-151.0,0.00019888,2]
[408020540,1773035446435,-151.0,0.00019888,2]
[408020541,1773035446444,-151.0,0.00019888,2]
[408020542,1773035446453,-151.0,0.00019888,2]
[408020543,1773035446463,-427.812027,0.00019888,2]
[408020544,1773035446472,-427.812027,0.00019888,2]
[408020545,1773035446758,-427.812027,0.00019888,2]
[408020546,1773035446768,-427.812027,0.00019888,2]
[408020547,1773035446777,-455.6,0.00019889,2]
[408020548,1773035446787,-150.0,0.00019891,2]
[408020549,1773035446796,-150.0,0.00019891,2]
[408020550,1773035446805,-237.03813108,0.00019891,2]
[408020551,1773035446815,-513.19407865,0.00019891,2]
[408020552,1773035446824,-411.27450762,0.00019891,2]
[408020553,1773035446833,-500.0,0.00019891,2]
[408020554,1773035446842,-500.0,0.00019891,2]
[408020555,1773035446852,-25000.0,0.00019891,3]
[408020556,1773035446861,-25000.0,0.00019891,3]
[408020557,1773035446870,-500.0,0.00019899,2]
[408020558,1773035446880,-500.0,0.00019899,2]
[408020559,1773035446889,-500.0,0.00019899,2]
[408020560,1773035446899,-500.0,0.00019899,2]
[408020561,1773035446908,-586.870057,0.00019899,2]
[408020562,1773035446917,-649.78,0.00019899,2]
[408020563,1773035446927,-500.0,0.00019899,2]
[408020564,1773035446935,-500.0,0.00019899,2]
[408020565,1773035446944,-500.0,0.00019899,2]
[408020566,1773035446954,-500.0,0.00019899,2]
[408020567,1773035446963,-739.14,0.00019899,2]
[408020568,1773035446972,-490.0,0.00019899,2]
[408020569,1773035446981,-500.0,0.00019899,2]
[408020570,1773035446990,-500.0,0.00019899,2]
[408020571,1773035447001,-500.0,0.00019899,2]
[408020572,1773035447010,-500.0,0.00019899,2]
[408020573,1773035447019,-500.0,0.00019899,2]
[408020574,1773035447028,-500.0,0.00019899,2]
[408020575,1773035447038,-25000.0,0.000199,3]
[408020576,1773035447047,-23196.00044374,0.000199,3]
[408020577,1773035447057,-151.0,0.000199,2]
[408020578,1773035447066,-151.0,0.000199,2]
[408020579,1773035447075,-2706.2204,0.000199,2]
[408020580,1773035447084,-343.42229143,0.000199,2]
[408020581,1773035447093,-2770.74863599,0.000199,2]
[408020582,1773035447101,-25000.0,0.000199,3]
[408020583,1773035447111,-159.050609,0.000199,2]
[408020584,1773035447123,-159.050609,0.000199,2]
[408020585,1773035447133,-159.050609,0.000199,2]
[408020586,1773035447142,-159.050609,0.000199,2]
[408020587,1773035447152,-151.0,0.000199,2]
[408020588,1773035447162,-151.0,0.000199,2]
[408020589,1773035447172,-151.0,0.000199,2]
[408020590,1773035447182,-151.0,0.000199,2]
[408020591,1773035447191,-152.776023,0.000199,2]
[408020592,1773035447201,-1400.0,0.000199,7]
[408020593,1773035447210,-427.812027,0.000199,2]
[408020594,1773035447221,-427.812027,0.000199,2]
[408020595,1773035447231,-427.812027,0.000199,2]
[408020596,1773035447240,-427.812027,0.000199,2]
[408020597,1773035447250,-6071.66356553,0.000199,2]
[408020598,1773035447259,-217.255078,0.000199,2]
[408020599,1773035447268,-217.255078,0.000199,2]
[408020600,1773035447277,-217.255078,0.000199,2]
[408020601,1773035447286,-217.255078,0.000199,2]
[408020602,1773035447295,-151.0,0.000199,2]
[408020603,1773035447305,-408.369624,0.000199,2]
[408020604,1773035447315,-408.369624,0.000199,2]
[408020605,1773035447326,-408.369624,0.000199,2]
[408020606,1773035447335,-408.369617,0.000199,2]
[408020607,1773035447344,-1011.16800427,0.000199,2]
[408020608,1773035447353,-1716.0,0.000199,2]
[408020609,1773035447363,-155.37544647,0.00019927,2]
[408020610,1773035447372,-152.0,0.00019943,7]
[408020611,1773035447382,-202.59725118,0.00019946,2]
[408020612,1773035447391,-159.96492822,0.00019946,2]
[408020613,1773035447402,-500.0,0.00019946,2]
[408020614,1773035447411,-350.0,0.00019946,2]
[408020615,1773035447420,-217.03,0.00019946,2]
[408020616,1773035447429,-781.25,0.00019963,2]
[408020617,1773035447438,-1351.23310367,0.00019968,2]
[408020618,1773035447447,-152.0,0.00019968,2]
[408020619,1773035447456,-350.0,0.00019969,3]
[408020620,1773035447465,-500.0,0.00019973,2]
[408020621,1773035447474,-150.0,0.00019973,2]
[408020622,1773035447483,-5897.60753717,0.0001998,5]
[408020623,1773035447493,-151.0,0.00019985,2]
[408020624,1773035447503,-261.45915393,0.00019987,2]
[408020625,1773035447513,-417.205546,0.00019988,2]
[408020626,1773035447524,-417.205546,0.00019988,2]
[408020627,1773035447537,-417.205546,0.00019988,2]
[408020628,1773035447546,-417.205546,0.00019988,2]
[408020629,1773035447555,-189.50421794,0.0001999,2]
[408020630,1773035447566,-719.0,0.00019997,2]
[408020631,1773035447578,-150.0,0.00019997,2]
[408020632,1773035447588,-268.0,0.00019997,2]
[408020633,1773035447599,-500.0,0.00019997,2]
[408020634,1773035447608,-151.0,0.00019997,2]
[408020635,1773035447618,-500.0,0.00019997,2]
[408020636,1773035447627,-649.78,0.00019997,2]
[408020637,1773035447636,-500.0,0.00019997,2]
[408020638,1773035447645,-500.0,0.00019997,2]
[408020639,1773035447654,-500.0,0.00019997,2]
[408020640,1773035447664,-500.0,0.00019997,2]
[408020641,1773035447673,-739.14,0.00019997,2]
[408020642,1773035447682,-500.0,0.00019997,2]
[408020643,1773035447691,-500.0,0.00019997,2]
[408020644,1773035447699,-500.0,0.00019997,2]
[408020645,1773035447708,-153.231189,0.00019998,2]
[408020646,1773035447718,-151.0,0.00019998,2]
[408020647,1773035447727,-3505.0,0.00019998,2]
[408020648,1773035447736,-1342.0,0.00019998,2]
[408020649,1773035447744,-619.0,0.00019998,2]
[408020650,1773035447753,-1046.666,0.00019998,2]
[408020651,1773035447763,-150.294,0.00019998,2]
[408020652,1773035447772,-1279.0,0.00019998,2]
[408020653,1773035447781,-925.993,0.00019998,2]
[408020654,1773035447790,-1213.0,0.00019998,2]
[408020655,1773035447800,-5994.0,0.00019998,2]
[408020656,1773035447810,-2461.0,0.00019998,2]
[408020657,1773035447819,-414.0,0.00019998,2]
[408020658,1773035447828,-300.0,0.00019999,2]
[408020659,1773035447838,-500.0,0.00019999,2]
[408020660,1773035447847,-649.78,0.00019999,2]
[408020661,1773035447857,-649.78,0.00019999,2]
[408020662,1773035447866,-649.78,0.00019999,2]
[408020663,1773035447876,-649.78,0.00019999,2]
[408020664,1773035447885,-649.78,0.00019999,2]
[408020665,1773035447895,-649.78,0.00019999,2]
[408020666,1773035447905,-649.78,0.00019999,2]
[408020667,1773035447915,-649.78,0.00019999,2]
[408020668,1773035447924,-649.78,0.00019999,2]
[408020669,1773035447934,-649.78,0.00019999,2]
[408020670,1773035447943,-649.78,0.00019999,2]
[408020671,1773035447953,-649.78,0.00019999,2]
[408020672,1773035447963,-649.78,0.00019999,2]
[408020673,1773035447972,-649.78,0.00019999,2]
[408020674,1773035447982,-649.78,0.00019999,2]
[408020675,1773035447993,-649.78,0.00019999,2]
[408020676,1773035448002,-649.78,0.00019999,2]
[408020677,1773035448011,-649.78,0.00019999,2]
[408020678,1773035448020,-649.78,0.00019999,2]
[408020679,1773035448029,-649.78,0.00019999,2]
[408020680,1773035448039,-649.78,0.00019999,2]
[408020681,1773035448048,-649.88016354,0.00019999,2]
[408020682,1773035448058,-6585.78626186,0.00019999,2]
[408020683,1773035448068,-500.0,0.00019999,2]
[408020684,1773035448077,-500.0,0.00019999,2]
[408020685,1773035448087,-500.0,0.00019999,2]
[408020686,1773035448096,-500.0,0.00019999,2]
[408020687,1773035448105,-505.78229935,0.00019999,2]
[408020688,1773035448114,-500.0,0.00019999,2]
[408020689,1773035448123,-503.03760092,0.00019999,2]
[408020690,1773035448131,-440.08639268,0.00019999,2]
[408020691,1773035448141,-500.0,0.00019999,2]
[408020692,1773035448150,-500.0,0.00019999,2]
[408020693,1773035448159,-500.0,0.00019999,2]
[408020694,1773035448167,-500.0,0.00019999,2]
[408020695,1773035448176,-500.0,0.00019999,2]
[408020696,1773035448186,-506.77106008,0.00019999,2]
[408020697,1773035448196,-500.0,0.00019999,2]
[408020698,1773035448204,-605.55782896,0.00019999,2]
[408020699,1773035448214,-739.14,0.00019999,2]
[408020700,1773035448223,-739.14,0.00019999,2]
[408020701,1773035448232,-739.14,0.00019999,2]
[408020702,1773035448241,-739.14,0.00019999,2]
[408020703,1773035448250,-739.14,0.00019999,2]
[408020704,1773035448259,-739.14,0.00019999,2]
[408020705,1773035448268,-739.14,0.00019999,2]
[408020706,1773035448277,-739.14,0.00019999,2]
[408020707,1773035448287,-739.14,0.00019999,2]
[408020708,1773035448296,-739.14,0.00019999,2]
[408020709,1773035448305,-739.14,0.00019999,2]
[408020710,1773035448315,-739.14,0.00019999,2]
[408020711,1773035448324,-739.14,0.00019999,2]
[408020712,1773035448334,-739.14,0.00019999,2]
[408020713,1773035448343,-739.14,0.00019999,2]
[408020714,1773035448352,-739.14,0.00019999,2]
[408020715,1773035448361,-739.14,0.00019999,2]
[408020716,1773035448370,-739.14,0.00019999,2]
[408020717,1773035448379,-739.14,0.00019999,2]
[408020718,1773035448388,-739.14,0.00019999,2]
[408020719,1773035448397,-739.14,0.00019999,2]
[408020720,1773035448406,-739.37580188,0.00019999,2]
[408020721,1773035448415,-500.0,0.00019999,2]
[408020722,1773035448425,-500.0,0.00019999,2]
[408020723,1773035448434,-500.0,0.00019999,2]
[408020724,1773035448443,-500.0,0.00019999,2]
[408020725,1773035448452,-500.0,0.00019999,2]
[408020726,1773035448461,-500.0,0.00019999,2]
[408020727,1773035448470,-500.0,0.00019999,2]
[408020728,1773035448479,-500.0,0.00019999,2]
[408020729,1773035448488,-500.0,0.00019999,2]
[408020730,1773035448498,-500.0,0.00019999,2]
[408020731,1773035448507,-500.0,0.00019999,2]
[408020732,1773035448516,-500.0,0.00019999,2]
[408020733,1773035448525,-500.0,0.00019999,2]
[408020734,1773035448537,-500.0,0.00019999,2]
[408020735,1773035448547,-500.0,0.00019999,2]
[408020736,1773035448555,-500.0,0.00019999,2]
[408020737,1773035448564,-500.0,0.00019999,2]
[408020738,1773035448573,-440.75301205,0.00019999,2]
[408020739,1773035448583,-151.0,0.00019999,2]
[408020740,1773035448591,-154.470489,0.00019999,2]
[408020741,1773035448601,-500.0,0.00019999,2]
[408020742,1773035448610,-500.0,0.00019999,2]
[408020743,1773035448619,-500.0,0.00019999,2]
[408020744,1773035448628,-500.0,0.00019999,2]
[408020745,1773035448637,-500.0,0.00019999,2]
[408020746,1773035448646,-485.09770458,0.00019999,2]
[408020747,1773035448655,-500.0,0.00019999,2]
[408020748,1773035448664,-500.0,0.00019999,2]
[408020749,1773035448673,-500.0,0.00019999,2]
[408020750,1773035448683,-500.0,0.00019999,2]
[408020751,1773035448691,-500.0,0.00019999,2]
[408020752,1773035448701,-500.0,0.00019999,2]
[408020753,1773035448712,-500.0,0.00019999,2]
[408020754,1773035448727,-500.0,0.00019999,2]
[408020755,1773035448736,-500.0,0.00019999,2]
[408020756,1773035448746,-500.0,0.00019999,2]
[408020757,1773035448755,-500.0,0.00019999,2]
[408020758,1773035448764,-500.0,0.00019999,2]
[408020759,1773035448773,-500.0,0.00019999,2]
[408020760,1773035448782,-500.0,0.00019999,2]
[408020761,1773035448791,-500.0,0.00019999,2]
[408020762,1773035448802,-507.08615799,0.00019999,2]
[408020763,1773035448811,-500.0,0.00019999,2]
[408020764,1773035448820,-500.0,0.00019999,2]
[408020765,1773035448830,-500.0,0.00019999,2]
[408020766,1773035448839,-500.0,0.00019999,2]
[408020767,1773035448849,-500.0,0.00019999,2]
[408020768,1773035448858,-426.88612498,0.00019999,2]
[408020769,1773035448867,-427.812027,0.00019999,2]
[408020770,1773035448877,-427.812027,0.00019999,2]
[408020771,1773035448886,-427.812027,0.00019999,2]
[408020772,1773035448895,-427.812031,0.00019999,2]
[408020773,1773035448905,-500.0,0.00019999,2]
[408020774,1773035448914,-251.67,0.00019999,2]
[408020775,1773035448923,-500.0,0.00019999,2]
[408020776,1773035448932,-500.0,0.00019999,2]
[408020777,1773035448941,-500.0,0.00019999,2]
[408020778,1773035448950,-502.4850874,0.00019999,2]
[408020779,1773035448959,-217.255078,0.00019999,2]
[408020780,1773035448968,-217.255078,0.00019999,2]
[408020781,1773035448977,-217.255078,0.00019999,2]
[408020782,1773035448987,-217.255076,0.00019999,2]
[408020783,1773035448996,-310.6853941,0.00019999,2]
[408020784,1773035449005,-1660.0,0.0002,2]
[408020785,1773035449014,-15619.34234157,0.0002,2]
[408020786,1773035449166,-1298.97054013,0.00019339,2]
[408020791,1773036074207,252.49,9.123e-05,2]
[408020792,1773036074427,252.49,9.603e-05,2]
[408020793,1773036074718,252.49,0.00010084,2]
[408020794,1773036074914,252.49,0.00010564,2]
[408020795,1773036075097,252.49,0.00011044,2]
[408020796,1773036075303,252.49,0.00011524,2]
[408020797,1773036154717,10000.01,9.5e-05,3]
[408020798,1773036154742,10000.01,9.5e-05,3]
[408020799,1773036154764,10000.01,9.5e-05,3]
[408020800,1773036154788,10000.01,9.5e-05,3]
[408020801,1773036154810,10000.01,9.5e-05,3]
[408020802,1773036154832,10000.01,9.5e-05,3]
[408020803,1773036154854,10000.01,9.5e-05,3]
[408020804,1773036154881,30000.03,9.5e-05,3]
[408020805,1773036185014,161.0,0.00012004,2]
[408020806,1773036185261,161.0,0.00012004,2]
[408020809,1773036245438,162.0,0.00012004,2]
[408020810,1773036247338,154.0,0.00012004,2]
[408020811,1773036305668,162.0,0.00012004,2]
[408020812,1773036306552,162.0,0.00012004,2]
[408020818,1773036366962,162.0,0.00012004,2]
[408020840,1773036632263,-250.0,0.00012004,2]
[408020841,1773036632280,-2.49,0.00012004,2]
[408020842,1773036632290,-252.49,0.00012484,2]
[408020843,1773036632300,-252.49,0.00012965,2]
[408020844,1773036632310,-1092.7,0.000132,2]
[408020845,1773036632319,-733.15099426,0.000132,2]
[408020846,1773036632330,-31.88900574,0.000132,2]
[408020847,1773036632340,-252.49,0.00013445,2]
[408020848,1773036632350,-1212.37984097,0.00013903,2]
[408020849,1773036632359,-64.5535533,0.00013925,2]
[408020850,1773036632373,-187.9364467,0.00013925,2]
[408020851,1773036632383,-154.92,0.00014,2]
[408020852,1773036632394,-5533.0,0.000143,5]
[408020853,1773036632404,-252.49,0.00014405,2]
[408020854,1773036632415,-241.822325,0.00014597,7]
[408020855,1773036632426,-252.49,0.00014885,2]
[408020856,1773036632435,-500.0,0.00015,30]
[408020858,1773036632460,-300.0,0.00015,2]
[408020859,1773036632478,-252.49,0.00015365,2]
[408020860,1773036632498,-154.92,0.0001556,2]
[408020861,1773036632516,-152.14,0.00015616,2]
[408020863,1773036632531,-252.49,0.00015846,2]
[408020865,1773036632549,-5000.0096399,0.000162,5]
[408020867,1773036632571,-4235.08297674,0.00016207,2]
[408020868,1773036632590,-252.49,0.00016326,2]
[408020869,1773036632606,-300.0,0.00016502,14]
[408020870,1773036632624,-252.49,0.00016806,2]
[408020871,1773036632643,-619.55268788,0.00016882,2]
[408020872,1773036632659,-510.0,0.00017,2]
[408020873,1773036632672,-550.0,0.00017,2]
[408020874,1773036632691,-501.0,0.00017,2]
[408020875,1773036632705,-2470.9,0.00017068,2]
[408020876,1773036632721,-200.0,0.00017069,2]
[408020877,1773036632742,-154.92,0.0001712,2]
[408020878,1773036632759,-200.0,0.00017147,2]
[408020879,1773036632774,-252.49,0.00017286,2]
[408020880,1773036632790,-166.66,0.00017512,2]
[408020881,1773036632805,-252.49,0.00017766,2]
[408020882,1773036632821,-776.69281377,0.00017872,2]
[408020883,1773036632837,-166.66,0.0001788,2]
[408020884,1773036632853,-200.25,0.00018,4]
[408020885,1773036632871,-150.0,0.00018033,2]
[408020886,1773036632893,-251.0,0.00018105,2]
[408020887,1773036632909,-150.0,0.00018211,2]
[408020888,1773036632925,-252.49,0.00018246,2]
[408020889,1773036632941,-166.66,0.00018249,2]
[408020890,1773036632960,-3424.61,0.00018348,2]
[408020891,1773036632977,-774.49266639,0.00018354,2]
[408020892,1773036632994,-500.0,0.00018356,7]
[408020893,1773036633014,-1100.0,0.00018356,7]
[408020894,1773036633033,-1000.0,0.00018356,7]
[408020895,1773036633050,-3240.0,0.00018361,2]
[408020896,1773036633067,-1500.0,0.00018383,2]
[408020897,1773036633085,-500.0,0.00018507,2]
[408020898,1773036633102,-500.0,0.00018507,2]
[408020899,1773036633120,-9999.99,0.00018533,2]
[408020900,1773036633135,-1000.0,0.00018583,2]
[408020901,1773036633154,-200.0,0.00018589,5]
[408020902,1773036633170,-166.66,0.00018618,2]
[408020903,1773036633186,-168.0,0.00018651,2]
[408020904,1773036633202,-170.06448864,0.00018675,2]
[408020905,1773036633218,-154.92,0.0001868,2]
[408020906,1773036633235,-500.0,0.00018682,2]
[408020907,1773036633251,-500.0,0.00018682,2]
[408020908,1773036633272,-500.0,0.00018682,2]
[408020909,1773036633287,-500.0,0.00018682,2]
[408020910,1773036633313,-500.0,0.00018682,2]
[408020911,1773036633337,-500.0,0.00018682,2]
[408020912,1773036633358,-172.87392778,0.0001871,2]
[408020913,1773036633379,-1562.54,0.00018734,2]
[408020914,1773036633399,-510.0,0.000188,3]
[408020915,1773036633417,-168.0,0.00018862,2]
[408020916,1773036633436,-290.9,0.00018894,2]
[408020917,1773036633454,-168.0,0.00018931,2]
[408020918,1773036633470,-2000.0,0.00018974,2]
[408020919,1773036633488,-166.66,0.00018986,2]
[408020920,1773036633504,-2036.43,0.00018988,2]
[408020921,1773036633524,-500.0,0.00018999,2]
[408020922,1773036633540,-151.0,0.00018999,2]
[408020923,1773036633556,-578.20924308,0.00018999,2]
[408020924,1773036633571,-174.61919141,0.00018999,2]
[408020925,1773036633586,-3606.47673855,0.00018999,2]
[408020926,1773036633601,-262.90206542,0.00018999,2]
[408020927,1773036633617,-667.13,0.00019,2]
[408020928,1773036633633,-503.02681123,0.00019,2]
[408020929,1773036633648,-810.449072,0.00019,2]
[408020930,1773036633663,-300.0,0.00019,6]
[408020931,1773036633678,-290.9,0.00019004,2]
[408020932,1773036633693,-201.0583386,0.00019027,2]
[408020933,1773036633709,-833.94767128,0.00019029,2]
[408020934,1773036633725,-500.0,0.00019029,2]
[408020935,1773036633740,-250.0,0.00019029,2]
[408020936,1773036633757,-151.0,0.00019029,2]
[408020937,1773036633773,-1428.38747117,0.00019029,2]
[408020938,1773036633789,-250.0,0.00019029,2]
[408020939,1773036633804,-500.0,0.00019029,2]
[408020940,1773036633820,-151.0,0.00019029,2]
[408020941,1773036633835,-250.0,0.00019029,2]
[408020942,1773036633850,-500.0,0.00019029,2]
[408020943,1773036633866,-151.0,0.00019029,2]
[408020944,1773036633883,-250.0,0.00019029,2]
[408020945,1773036633898,-500.0,0.00019029,2]
[408020946,1773036633914,-151.0,0.00019029,2]
[408020947,1773036633928,-250.0,0.00019029,2]
[408020948,1773036633944,-500.0,0.00019029,2]
[408020949,1773036633959,-151.0,0.00019029,2]
[408020950,1773036633974,-250.0,0.00019029,2]
[408020951,1773036633989,-2500.0,0.00019029,2]
[408020952,1773036634004,-500.0,0.00019029,2]
[408020953,1773036634020,-151.0,0.00019029,2]
[408020954,1773036634034,-250.0,0.00019029,2]
[408020955,1773036634049,-2500.0,0.00019029,2]
[408020956,1773036634064,-500.0,0.00019029,2]
[408020957,1773036634079,-151.0,0.00019029,2]
[408020958,1773036634093,-255.56124629,0.00019029,2]
[408020959,1773036634107,-2500.0,0.00019029,2]
[408020960,1773036634123,-151.0,0.00019029,2]
[408020961,1773036634137,-500.0,0.00019029,2]
[408020962,1773036634152,-2500.0,0.00019029,2]
[408020963,1773036634166,-151.0,0.00019029,2]
[408020964,1773036634180,-500.0,0.00019029,2]
[408020965,1773036634195,-2500.0,0.00019029,2]
[408020966,1773036634211,-151.0,0.00019029,2]
[408020967,1773036634226,-500.0,0.00019029,2]
[408020968,1773036634241,-321.84794901,0.00019029,2]
[408020969,1773036634258,-2500.0,0.00019029,2]
[408020970,1773036634273,-500.0,0.00019029,2]
[408020971,1773036634288,-151.0,0.00019029,2]
[408020972,1773036634302,-500.0,0.00019029,2]
[408020973,1773036634317,-500.0,0.00019029,2]
[408020974,1773036634332,-1731.47085774,0.00019029,2]
[408020979,1773036638428,-1268.52914226,0.00019029,2]
[408020980,1773036638438,-500.0,0.00019029,2]
[408020981,1773036638448,-3000.0,0.00019029,2]
[408020982,1773036638457,-500.0,0.00019029,2]
[408020983,1773036638467,-3000.0,0.00019029,2]
[408020984,1773036638476,-500.0,0.00019029,2]
[408020985,1773036638485,-3000.0,0.00019029,2]
[408020986,1773036638494,-500.0,0.00019029,2]
[408020987,1773036638503,-3000.0,0.00019029,2]
[408020988,1773036638513,-500.0,0.00019029,2]
[408020989,1773036638522,-3000.0,0.00019029,2]
[408020990,1773036638531,-500.0,0.00019029,2]
[408020991,1773036638541,-2999.42531871,0.00019029,2]
[408020992,1773036638550,-500.0,0.00019029,2]
[408020993,1773036638560,-151.0,0.00019029,2]
[408020994,1773036638569,-500.0,0.00019029,2]
[408020995,1773036638578,-151.0,0.00019029,2]
[408020996,1773036638587,-500.0,0.00019029,2]
[408020998,1773036638597,-151.0,0.00019029,2]
[408020999,1773036638606,-151.0,0.00019029,2]
[408021000,1773036638615,-151.0,0.00019029,2]
[408021001,1773036638625,-151.0,0.00019029,2]
[408021002,1773036638634,-2500.0,0.00019029,2]
[408021003,1773036638643,-151.0,0.00019029,2]
[408021004,1773036638653,-2500.0,0.00019029,2]
[408021005,1773036638662,-151.0,0.00019029,2]
[408021006,1773036638671,-2500.0,0.00019029,2]
[408021007,1773036638680,-151.0,0.00019029,2]
[408021008,1773036638690,-2500.0,0.00019029,2]
[408021009,1773036638699,-151.0,0.00019029,2]
[408021010,1773036638714,-2046.99483065,0.00019029,2]
[408021011,1773036638724,-151.0,0.00019029,2]
[408021012,1773036638733,-151.0,0.00019029,2]
[408021013,1773036638743,-151.0,0.00019029,2]
[408021014,1773036638754,-151.0,0.00019029,2]
[408021015,1773036638765,-151.0,0.00019029,2]
[408021016,1773036638775,-200.0,0.00019029,2]
[408021017,1773036638786,-500.0,0.00019029,2]
[408021018,1773036638797,-500.0,0.00019029,2]
[408021019,1773036638807,-151.0,0.00019029,2]
[408021020,1773036638817,-500.0,0.00019029,2]
[408021021,1773036638827,-500.0,0.00019029,2]
[408021022,1773036639165,-500.0,0.00019029,2]
[408021023,1773036639193,-500.0,0.00019029,2]
[408021024,1773036639203,-500.0,0.00019029,2]
[408021025,1773036639212,-500.0,0.00019029,2]
[408021026,1773036639221,-500.0,0.00019029,2]
[408021027,1773036639231,-500.0,0.00019029,2]
[408021028,1773036639240,-500.0,0.00019029,2]
[408021029,1773036639250,-290.26104003,0.00019029,2]
[408021030,1773036639259,-2806.0,0.0001904,2]
[408021031,1773036639270,-151.0,0.00019054,2]
[408021032,1773036639280,-226.88022743,0.00019073,2]
[408021033,1773036639289,-500.0,0.00019073,2]
[408021034,1773036639298,-500.0,0.00019073,2]
[408021035,1773036639308,-2034.02090203,0.00019098,2]
[408021036,1773036639317,-600.0,0.000191,6]
[408021037,1773036639327,-290.9,0.00019115,2]
[408021038,1773036639336,-168.0,0.00019166,2]
[408021039,1773036639346,-456.11,0.00019178,2]
[408021040,1773036639356,-1000.0,0.00019178,2]
[408021041,1773036639365,-2034.02090196,0.00019187,2]
[408021042,1773036639375,-1213.0,0.00019198,2]
[408021043,1773036639384,-922.0,0.00019198,2]
[408021044,1773036639393,-5994.0,0.00019198,2]
[408021045,1773036639403,-2461.0,0.00019198,2]
[408021046,1773036639412,-900.0,0.000192,7]
[408021047,1773036639422,-171.41457614,0.00019205,2]
[408021048,1773036639431,-290.9,0.00019226,2]
[408021049,1773036639440,-700.0,0.00019228,3]
[408021050,1773036639450,-2034.02090196,0.00019276,2]
[408021051,1773036639459,-1200.0,0.000193,7]
[408021052,1773036639468,-290.9,0.00019336,2]
[408021053,1773036639478,-150.99,0.00019339,2]
[408021054,1773036639487,-719.21,0.00019339,2]
[408021055,1773036639497,-312.13,0.00019339,2]
[408021056,1773036639506,-9999.99,0.00019339,2]
[408021057,1773036639517,-9999.99,0.00019339,2]
[408021058,1773036639526,-1476.68,0.00019339,2]
[408021059,1773036639535,-9999.99,0.00019339,2]